bitfinex/quotes_SOLUSD_20250518
["timestamp","ask_amount","ask_price","bid_price","bid_amount"]
[1747583197804,28.28800043,175.46,175.44,0.3840126]
[1747583198107,28.28800043,175.46,175.44,6.08384465]
[1747583199013,1.6089,175.5,175.44,6.08384465]
[1747583199193,1.6089,175.5,175.45,1.13984038]
[1747583199496,1.6089,175.5,175.46,5.69930468]
[1747583199701,29.89690043,175.5,175.46,5.69930468]
[1747583200089,1.6089,175.5,175.46,5.69930468]
[1747583200280,29.89690043,175.5,175.46,5.69930468]
[1747583201482,29.89690043,175.5,175.45,5.69962952]
[1747583203616,29.89690043,175.5,175.45,25.21962952]
[1747583204382,28.28800043,175.47,175.44,0.3840126]
[1747583205000,28.28800043,175.46,175.44,0.3840126]
[1747583205515,28.28800043,175.46,175.44,6.08385625]
[1747583205686,1.6089,175.5,175.44,6.08385625]
[1747583206012,28.28800043,175.46,175.44,6.08385625]
[1747583206185,28.28800043,175.47,175.44,6.08385625]
[1747583206714,28.28800043,175.47,175.44,0.3840126]
[1747583207010,28.28800043,175.48,175.44,6.08369497]
[1747583207205,28.28800043,175.49,175.44,6.08369497]
[1747583207402,1.6089,175.5,175.44,20.33358097]
[1747583207786,28.28800043,175.49,175.44,20.33358097]
[1747583207987,28.28800043,175.47,175.44,6.08369497]
[1747583208384,28.28800043,175.47,175.44,6.08388492]
[1747583209007,28.28800043,175.46,175.44,0.3840126]
[1747583209210,28.28800043,175.46,175.44,6.08383668]
[1747583210416,7.30697491,175.5,175.44,6.08383668]
[1747583210417,5.69841658,175.49,175.44,0.3840126]
[1747583210613,28.28800043,175.47,175.44,0.3840126]
[1747583210822,28.28800043,175.46,175.44,0.3840126]
[1747583212017,28.28800043,175.45,175.44,0.3840126]
[1747583212515,34.70480043,175.45,175.4,106.356505]
[1747583212820,28.28800043,175.42,175.4,106.356505]
[1747583213021,28.28800043,175.42,175.4,112.05765137]
[1747583213224,6.4168,175.45,175.4,112.05765137]
[1747583213518,28.28800043,175.42,175.4,106.356505]
[1747583213820,17.71452001,175.42,175.4,106.356505]
[1747583214196,6.4168,175.45,175.4,112.05770931]
[1747583214389,17.71452001,175.47,175.4,112.05770931]
[1747583214595,17.71452001,175.41,175.4,106.356505]
[1747583215090,17.71452001,175.42,175.4,106.306505]
[1747583216122,17.71452001,175.41,175.4,106.306505]
[1747583216421,19.33172001,175.41,175.4,106.306505]
[1747583216912,1.6172,175.41,175.4,106.306505]
[1747583217119,19.33172001,175.41,175.4,106.306505]
[1747583218308,67.76261813,175.41,175.4,106.306505]
[1747583218619,50.04809812,175.41,175.4,106.306505]
[1747583219403,67.76261813,175.41,175.4,106.306505]
[1747583219895,67.76261813,175.41,175.4,106.356505]
[1747583221193,50.04809812,175.41,175.4,106.356505]
[1747583221395,44.34716887,175.41,175.4,106.356505]
[1747583221903,50.04809812,175.41,175.4,106.356505]
[1747583222322,44.34716887,175.41,175.4,106.356505]
[1747583222521,7.983,175.41,175.4,106.356505]
[1747583222829,25.69752001,175.41,175.4,106.356505]
[1747583224198,67.76261813,175.41,175.3,5.70450656]
[1747583224517,18.64964886,175.39,175.3,5.70450656]
[1747583224889,17.71452001,175.32,175.3,5.70450656]
[1747583225095,17.71452001,175.4,175.3,5.70450656]
[1747583225296,17.71452001,175.38,175.3,112.40450656]
[1747583225523,17.71452001,175.39,175.3,126.66577296]
[1747583226023,17.71452001,175.4,175.32,19.96349531]
[1747583226196,17.71452001,175.39,175.33,20.24]
[1747583227302,17.71452001,175.34,175.33,20.24]
[1747583227514,13.68403936,175.41,175.32,5.7038558]
[1747583227714,17.71452001,175.35,175.32,5.7038558]
[1747583227912,17.71452001,175.35,175.31,5.70418116]
[1747583228215,17.71452001,175.37,175.31,19.96463407]
[1747583228813,17.71452001,175.37,175.31,40.50463407]
[1747583229437,17.71452001,175.36,175.31,40.50463407]
[1747583230120,17.71452001,175.37,175.31,40.50463407]
[1747583230617,17.71452001,175.38,175.31,40.50463407]
[1747583231827,17.71452001,175.39,175.31,40.50463407]
[1747583233433,17.71452001,175.38,175.31,40.50463407]
[1747583233832,17.71452001,175.37,175.31,40.50463407]
[1747583234510,17.71452001,175.36,175.31,40.50463407]
[1747583235037,17.71452001,175.36,175.31,19.96463407]
[1747583235238,7.983,175.41,175.31,19.96463407]
[1747583235546,17.71452001,175.39,175.31,19.96463407]
[1747583236212,26.0,175.45,175.34,26.0]
[1747583236213,8.0148,175.45,175.34,26.0]
[1747583236417,17.71452001,175.44,175.34,108.292]
[1747583236642,17.71452001,175.44,175.35,21.14021127]
[1747583236936,17.71452001,175.44,175.36,20.44]
[1747583237742,8.0148,175.45,175.36,20.44]
[1747583237926,17.71452001,175.41,175.36,20.44]
[1747583238544,17.71452001,175.41,175.37,5.70222957]
[1747583238748,17.71452001,175.42,175.37,5.70222957]
[1747583238922,8.0148,175.45,175.37,19.95780349]
[1747583239241,6.386,175.49,175.37,45.95780349]
[1747583239422,24.10052001,175.49,175.4,26.0]
[1747583240045,17.71452001,175.48,175.4,26.0]
[1747583240344,1.6288,175.5,175.4,26.0]
[1747583240544,17.71452001,175.49,175.41,39.95325237]
[1747583240730,1.6288,175.5,175.41,43.14726984]
[1747583241357,1.6288,175.5,175.41,123.84726984]
[1747583241563,19.34332001,175.5,175.41,123.84726984]
[1747583241736,17.71452001,175.49,175.41,123.84726984]
[1747583241930,1.6288,175.5,175.41,123.84726984]
[1747583242226,1.6288,175.5,175.42,3.19401747]
[1747583242450,19.34332001,175.5,175.43,20.56]
[1747583242756,19.34332001,175.5,175.44,5.6999544]
[1747583243679,17.71452001,175.49,175.44,5.6999544]
[1747583244668,1.6288,175.5,175.43,20.54]
[1747583244669,17.71452001,175.47,175.43,20.54]
[1747583245559,17.71452001,175.48,175.43,20.54]
[1747583245852,17.71452001,175.51,175.43,20.54]
[1747583246555,18.64964886,175.53,175.43,20.54]
[1747583246760,17.71452001,175.51,175.44,5.6999544]
[1747583247061,17.71452001,175.51,175.44,19.9498404]
[1747583248433,18.64964886,175.53,175.44,19.9498404]
[1747583248636,17.71452001,175.5,175.44,19.9498404]
[1747583249031,17.71452001,175.46,175.42,5.70060426]
[1747583250041,17.71452001,175.46,175.41,34.75187902]
[1747583251362,17.71452001,175.48,175.41,34.75187902]
[1747583251970,24.34675466,175.53,175.41,34.75187902]
[1747583252141,17.71452001,175.48,175.41,40.45280827]
[1747583252672,18.64964886,175.53,175.42,26.0]
[1747583252867,17.71452001,175.5,175.42,26.0]
[1747583253159,17.71452001,175.5,175.43,3.19109665]
[1747583253338,17.71452001,175.47,175.43,3.19109665]
[1747583254165,17.71452001,175.48,175.43,3.19109665]
[1747583254381,17.71452001,175.48,175.44,5.6999544]
[1747583255064,17.71452001,175.47,175.44,5.6999544]
[1747583255958,17.71452001,175.47,175.43,5.70027931]
[1747583256256,17.71452001,175.48,175.43,5.70027931]
[1747583256674,17.71452001,175.47,175.43,5.70027931]
[1747583257066,17.71452001,175.49,175.43,19.95097759]
[1747583257272,17.71452001,175.5,175.43,19.95097759]
[1747583257979,17.71452001,175.51,175.43,19.95097759]
[1747583259062,17.71452001,175.5,175.43,19.95097759]
[1747583261071,17.71452001,175.5,175.44,3.19562758]
[1747583261881,17.71452001,175.51,175.44,3.19562758]
[1747583262085,17.71452001,175.51,175.45,19.94870333]
[1747583262951,17.71452001,175.5,175.45,19.94870333]
[1747583263158,17.71452001,175.51,175.45,19.94870333]
[1747583263982,18.64964886,175.53,175.45,19.94870333]
[1747583264188,17.71452001,175.51,175.45,19.94870333]
[1747583264481,17.71452001,175.51,175.45,14.24907381]
[1747583264967,17.71452001,175.5,175.45,14.24907381]
[1747583265481,17.71452001,175.51,175.45,14.24907381]
[1747583266785,17.71452001,175.52,175.45,14.24907381]
[1747583267180,7.8442,175.58,175.45,15.38874191]
[1747583267355,17.71452001,175.55,175.46,20.46]
[1747583268076,17.71452001,175.54,175.46,20.46]
[1747583268256,17.71452001,175.53,175.46,20.46]
[1747583268751,17.71452001,175.53,175.47,19.94642958]
[1747583268974,17.71452001,175.54,175.47,19.94642958]
[1747583269985,18.64964886,175.57,175.48,20.18]
[1747583270173,17.71452001,175.54,175.48,20.18]
[1747583270772,17.71452001,175.54,175.49,5.69833038]
[1747583271814,17.71452001,175.53,175.49,5.69833038]
[1747583272188,24.34542537,175.57,175.49,5.69833038]
[1747583272386,17.71452001,175.53,175.49,5.69833038]
[1747583273608,17.71452001,175.54,175.49,5.69833038]
[1747583274497,17.71452001,175.52,175.49,5.69833038]
[1747583274895,17.71452001,175.53,175.49,5.69833038]
[1747583275075,24.34540072,175.57,175.49,5.69833038]
[1747583275277,17.71452001,175.53,175.49,5.69833038]
[1747583275602,17.71452001,175.54,175.49,5.69833038]
[1747583276273,17.71452001,175.54,175.49,5.71833038]
[1747583276507,18.64964886,175.57,175.49,19.96415635]
[1747583276676,17.71452001,175.56,175.49,19.96415635]
[1747583276896,7.8442,175.58,175.49,19.96415635]
[1747583277201,17.71452001,175.57,175.49,19.96415635]
[1747583277513,17.71452001,175.56,175.49,19.96415635]
[1747583277681,17.71452001,175.54,175.5,20.2]
[1747583277882,17.71452001,175.53,175.5,20.2]
[1747583278387,17.71452001,175.53,175.49,0.02]
[1747583278604,17.71452001,175.52,175.49,0.02]
[1747583279119,17.71452001,175.53,175.49,0.02]
[1747583279989,17.71452001,175.51,175.49,0.02]
[1747583280611,17.71452001,175.5,175.49,0.02]
[1747583281289,18.64964886,175.53,175.49,0.02]
[1747583281496,17.71452001,175.51,175.49,0.02]
[1747583281801,17.71452001,175.52,175.49,0.02]
[1747583282108,17.71452001,175.53,175.49,0.02]
[1747583282301,5.69573389,175.57,175.49,0.02]
[1747583282500,36.36416887,175.56,175.49,0.02]
[1747583282886,17.71452001,175.55,175.49,0.02]
[1747583283108,17.71452001,175.54,175.49,0.02]
[1747583283299,17.71452001,175.52,175.5,3.20158759]
[1747583283595,17.71452001,175.51,175.5,3.20158759]
[1747583284901,17.71452001,175.51,175.49,0.02]
[1747583285102,5.69678138,175.54,175.49,0.02]
[1747583285304,17.71452001,175.51,175.49,0.02]
[1747583285714,17.71452001,175.52,175.49,5.71832029]
[1747583286024,24.34602607,175.56,175.49,5.71832029]
[1747583286399,17.71452001,175.54,175.49,0.02]
[1747583287122,17.71452001,175.53,175.49,0.02]
[1747583287418,17.71452001,175.51,175.49,0.02]
[1747583288192,17.71452001,175.5,175.49,0.02]
[1747583288513,36.36416887,175.5,175.49,0.02]
[1747583288818,42.06217456,175.5,175.49,0.02]
[1747583289018,59.77669457,175.5,175.49,0.02]
[1747583290016,59.77669457,175.5,175.37,247.65521263]
[1747583290017,18.64964886,175.46,175.38,20.06]
[1747583290324,17.71452001,175.41,175.38,20.06]
[1747583290490,17.71452001,175.41,175.38,5.70184549]
[1747583290691,18.64964886,175.44,175.38,5.70184549]
[1747583290930,17.71452001,175.41,175.38,5.70184549]
[1747583291425,17.71452001,175.42,175.38,5.70184549]
[1747583291803,17.71452001,175.4,175.37,20.16]
[1747583292005,17.71452001,175.4,175.37,25.86213979]
[1747583292206,17.71452001,175.41,175.37,25.86213979]
[1747583292414,18.64964886,175.42,175.37,25.86213979]
[1747583292819,17.71452001,175.4,175.37,20.16]
[1747583293029,17.71452001,175.39,175.37,40.24]
[1747583293227,17.71452001,175.39,175.36,20.08]
[1747583293409,17.71452001,175.4,175.36,20.08]
[1747583293798,17.71452001,175.4,175.36,25.78233106]
[1747583293997,17.71452001,175.39,175.35,20.06]
[1747583294627,17.71452001,175.39,175.35,20.1]
[1747583295124,17.71452001,175.38,175.34,5.7032052]
[1747583295298,17.71452001,175.38,175.34,25.8032052]
[1747583295623,17.71452001,175.38,175.34,5.7032052]
[1747583295813,17.71452001,175.38,175.34,25.8032052]
[1747583296007,1.6038,175.43,175.34,25.8032052]
[1747583296322,17.71452001,175.41,175.34,40.0612182]
[1747583296503,20.25344886,175.43,175.34,40.0612182]
[1747583296819,17.71452001,175.43,175.34,40.0612182]
[1747583297039,17.71452001,175.45,175.34,40.0612182]
[1747583297198,18.64964886,175.46,175.35,1.573]
[1747583297398,19.35852001,175.47,175.37,26.0]
[1747583297592,17.71452001,175.46,175.37,46.16]
[1747583297796,17.71452001,175.45,175.37,46.16]
[1747583298031,17.71452001,175.45,175.38,5.70190443]
[1747583298829,17.71452001,175.44,175.38,5.70190443]
[1747583299400,17.71452001,175.42,175.39,20.08]
[1747583299601,17.71452001,175.42,175.38,25.78190443]
[1747583300125,7.34300873,175.47,175.38,25.78190443]
[1747583300126,17.71452001,175.44,175.38,25.78190443]
[1747583300515,17.71452001,175.45,175.38,25.78190443]
[1747583300719,17.71452001,175.44,175.38,25.78190443]
[1747583301434,17.71452001,175.43,175.38,25.78190443]
[1747583301597,17.71452001,175.41,175.38,5.70190443]
[1747583301901,17.71452001,175.41,175.38,25.72190443]
[1747583302335,17.71452001,175.42,175.38,25.72190443]
[1747583302624,17.71452001,175.43,175.38,25.72190443]
[1747583302812,17.71452001,175.42,175.38,25.72190443]
[1747583304513,18.64964886,175.46,175.38,39.97666552]
[1747583304822,17.71452001,175.44,175.38,5.70190443]
[1747583305026,17.71452001,175.42,175.38,5.70190443]
[1747583305229,17.71452001,175.42,175.38,25.74190443]
[1747583306433,18.64964886,175.44,175.38,25.74190443]
[1747583306614,18.64964886,175.44,175.38,65.99666552]
[1747583306815,18.64964886,175.46,175.38,65.99666552]
[1747583307022,17.71452001,175.47,175.38,65.99666552]
[1747583307238,36.36416887,175.46,175.38,65.99666552]
[1747583308115,18.64964886,175.46,175.38,65.99666552]
[1747583308426,18.64964886,175.49,175.41,26.0]
[1747583308621,18.64964886,175.49,175.41,46.16]
[1747583309010,18.64964886,175.51,175.41,46.16]
[1747583309213,17.71452001,175.5,175.41,46.16]
[1747583309435,18.64964886,175.51,175.42,19.95211492]
[1747583309731,17.71452001,175.48,175.42,19.95211492]
[1747583309935,18.64964886,175.47,175.42,19.95211492]
[1747583310113,36.36416887,175.45,175.42,25.68060426]
[1747583310942,17.71452001,175.46,175.42,25.68060426]
[1747583311263,18.64964886,175.47,175.42,25.68060426]
[1747583312243,17.71452001,175.49,175.42,65.93211492]
[1747583312938,7.7289,175.56,175.45,26.0]
[1747583313244,17.71452001,175.51,175.46,19.96]
[1747583313746,17.71452001,175.51,175.47,5.69897988]
[1747583313913,17.71452001,175.49,175.47,5.69897988]
[1747583314534,17.71452001,175.51,175.47,5.69897988]
[1747583315948,17.71452001,175.51,175.46,5.69930468]
[1747583316157,17.71452001,175.5,175.46,5.69930468]
[1747583316357,18.64964886,175.49,175.46,5.69930468]
[1747583316569,36.36416887,175.49,175.46,5.69930468]
[1747583316737,18.64964886,175.49,175.46,5.69930468]
[1747583318658,18.64964886,175.5,175.46,5.69930468]
[1747583319460,17.71452001,175.5,175.46,5.69930468]
[1747583320436,18.64964886,175.5,175.46,19.94756639]
[1747583320638,17.71452001,175.52,175.46,19.94756639]
[1747583321444,18.64964886,175.55,175.46,19.94756639]
[1747583321666,18.64964886,175.52,175.46,19.94756639]
[1747583322559,17.71452001,175.55,175.47,26.0]
[1747583322863,18.64964886,175.55,175.47,26.0]
[1747583323051,36.36416887,175.55,175.47,26.0]
[1747583323954,36.36416887,175.53,175.48,19.76]
[1747583324137,18.64964886,175.53,175.48,22.95349215]
[1747583324337,36.36416887,175.53,175.49,5.69833038]
[1747583324567,17.71452001,175.52,175.49,5.69833038]
[1747583324750,17.71452001,175.53,175.49,5.69833038]
[1747583325064,17.71452001,175.58,175.49,5.69833038]
[1747583325270,18.64964886,175.57,175.5,3.19349215]
[1747583326313,18.64964886,175.57,175.51,19.94188364]
[1747583326650,18.64964886,175.58,175.51,19.94188364]
[1747583327466,17.71452001,175.55,175.51,5.69768104]
[1747583327673,18.64964886,175.53,175.51,5.69768104]
[1747583328045,36.36416887,175.53,175.48,19.94495383]
[1747583328273,17.71452001,175.52,175.48,39.72495383]
[1747583328484,17.71452001,175.51,175.48,25.47865511]
[1747583330170,17.71452001,175.56,175.48,25.47865511]
[1747583330370,18.64964886,175.56,175.48,39.7252929]
[1747583330976,18.64964886,175.58,175.51,26.0]
[1747583331562,18.64964886,175.58,175.49,26.0]
[1747583332263,18.64964886,175.58,175.5,19.94301993]
[1747583334292,18.64964886,175.58,175.52,5.69735642]
[1747583335688,46.9483084,175.58,175.52,5.69735642]
[1747583336279,18.64964886,175.58,175.52,5.69735642]
[1747583336787,46.9483084,175.58,175.52,5.69735642]
[1747583336985,52.64371973,175.58,175.52,5.69735642]
[1747583337310,18.64964886,175.58,175.52,5.69735642]
[1747583337787,42.9044898,175.59,175.52,19.94074748]
[1747583338165,18.64964886,175.6,175.52,19.94074748]
[1747583340897,18.64964886,175.6,175.52,21.56944748]
[1747583341095,18.64964886,175.58,175.52,5.69735642]
[1747583341389,46.9483084,175.58,175.52,5.69735642]
[1747583341575,18.64964886,175.58,175.52,5.69735642]
[1747583341983,18.64964886,175.57,175.52,5.69735642]
[1747583342562,1.5878,175.62,175.52,5.69735642]
[1747583342563,1.5878,175.62,175.52,19.94074748]
[1747583342767,95.4902,175.65,175.55,26.0]
[1747583342968,95.4902,175.65,175.56,19.58]
[1747583343270,95.4902,175.65,175.57,19.58]
[1747583344091,95.4902,175.65,175.58,19.93393323]
[1747583346569,95.4902,175.65,175.58,49.54978465]
[1747583347297,95.4902,175.65,175.61,26.0]
[1747583347475,95.4902,175.65,175.62,19.58]
[1747583347675,95.4902,175.65,175.63,19.56]
[1747583348271,95.4902,175.65,175.64,5.6934639]
[1747583349298,95.4902,175.72,175.64,74.39444316]
[1747583349781,95.4902,175.72,175.64,75.53273072]
[1747583349978,95.4902,175.72,175.68,26.0]
[1747583350184,95.4902,175.8,175.73,19.91691798]
[1747583350388,95.4902,175.8,175.73,21.52071798]
[1747583350583,94.9902,175.8,175.73,21.52071798]
[1747583351281,94.9902,175.8,175.74,39.14]
[1747583351684,94.9902,175.8,175.75,19.56]
[1747583351991,94.9902,175.8,175.74,19.56]
[1747583352173,94.9902,175.8,175.74,25.24994397]
[1747583353188,18.64964886,175.79,175.74,19.56]
[1747583353792,46.9483084,175.79,175.74,19.56]
[1747583353979,53.0899084,175.77,175.71,19.56]
[1747583354179,33.98858433,175.75,175.69,19.56]
[1747583354498,33.98858433,175.75,175.69,25.25181729]
[1747583354695,18.64964886,175.74,175.69,19.56]
[1747583355579,46.9483084,175.74,175.69,19.56]
[1747583355797,28.29865954,175.73,175.69,19.56]
[1747583356398,46.9483084,175.72,175.69,19.56]
[1747583356597,46.9483084,175.72,175.62,5.69411228]
[1747583356786,28.29865954,175.71,175.65,19.52]
[1747583356995,18.64964886,175.72,175.65,19.52]
[1747583357402,18.64964886,175.74,175.65,19.52]
[1747583357908,18.64964886,175.75,175.65,19.52]
[1747583358297,18.64964886,175.75,175.66,5.69281566]
[1747583358898,18.64964886,175.76,175.66,19.92485482]
[1747583359095,6.1416,175.77,175.66,45.92485482]
[1747583359302,6.1416,175.77,175.69,26.0]
[1747583359490,1.5266,175.78,175.7,19.56]
[1747583359690,1.5266,175.78,175.71,19.52]
[1747583360386,18.64964886,175.79,175.72,5.69087184]
[1747583360892,94.9902,175.8,175.72,5.69087184]
[1747583361301,100.67852735,175.8,175.72,5.69087184]
[1747583361700,94.9902,175.8,175.72,5.69087184]
[1747583362210,94.9902,175.8,175.72,31.69087184]
[1747583362412,94.9902,175.8,175.75,26.0]
[1747583362600,94.9902,175.8,175.76,19.56]
[1747583362795,94.9902,175.8,175.77,19.5]
[1747583364412,94.9902,175.8,175.78,5.68892934]
[1747583364828,94.9902,175.8,175.79,19.56]
[1747583366110,94.9902,175.8,175.77,19.58]
[1747583366510,94.9902,175.8,175.77,25.26920578]
[1747583367317,94.9902,175.8,175.77,28.16535736]
[1747583368389,94.9902,175.8,175.76,19.56]
[1747583368606,94.9902,175.8,175.76,39.12]
[1747583368989,94.9902,175.8,175.76,44.80949205]
[1747583370306,94.9902,175.8,175.76,142.64265797]
[1747583371220,94.9902,175.8,175.76,61.94265797]
[1747583372332,94.9902,175.8,175.76,8.59871624]
[1747583372628,94.9902,175.8,175.77,39.34]
[1747583375021,94.9902,175.8,175.78,5.68892934]
[1747583375621,94.9902,175.8,175.78,33.27192934]
[1747583376202,94.9902,175.8,175.79,26.0]
[1747583376995,94.9902,175.8,175.79,31.68860572]
[1747583377422,94.9902,175.8,175.79,71.04860572]
[1747583379100,94.9902,175.8,175.79,45.04860572]
[1747583381731,94.9902,175.8,175.79,71.04860572]
[1747583381938,94.9902,175.8,175.79,45.04860572]
[1747583382146,93.3236,175.8,175.79,63.17080572]
[1747583382302,95.4902,175.87,175.82,26.0]
[1747583382506,95.4902,175.87,175.83,1.13709763]
[1747583383104,95.4902,175.87,175.86,26.0]
[1747583385234,95.4902,175.87,175.86,31.6863414]
[1747583385818,95.4902,175.87,175.86,27.4063414]
[1747583388216,95.4902,175.87,175.86,30.5545803]
[1747583392364,95.4902,175.87,175.86,111.2545803]
[1747583397436,95.4902,175.87,175.86,30.5545803]
[1747583397634,95.4902,175.94,175.89,26.0]
[1747583397635,93.2258743,175.94,175.89,26.0]
[1747583397830,93.2258743,175.94,175.92,26.0]
[1747583398157,93.2258743,175.94,175.93,42.68]
[1747583398461,93.2258743,175.94,175.93,123.38]
[1747583399058,143.290372,176.0,175.97,5.68278683]
[1747583399223,143.290372,176.0,175.98,42.64]
[1747583401059,171.58903154,176.0,175.98,48.3222268]
[1747583401266,143.290372,176.0,175.98,48.3222268]
[1747583401545,171.58903154,176.0,175.98,48.3222268]
[1747583402048,143.290372,176.0,175.98,48.3222268]
[1747583402739,171.58903154,176.0,175.98,48.3222268]
[1747583403251,143.290372,176.0,175.98,48.3222268]
[1747583403636,171.58903154,176.0,175.98,48.3222268]
[1747583404652,143.290372,176.0,175.98,48.3222268]
[1747583404854,171.58903154,176.0,175.98,48.3222268]
[1747583405045,143.290372,176.0,175.98,48.3222268]
[1747583406940,171.58903154,176.0,175.98,48.3222268]
[1747583407254,143.290372,176.0,175.98,48.3222268]
[1747583407660,171.58903154,176.0,175.98,48.3222268]
[1747583408956,143.290372,176.0,175.98,48.3222268]
[1747583409156,143.290372,176.0,175.98,130.15849221]
[1747583409349,143.290372,176.0,175.98,129.0222268]
[1747583410139,143.290372,176.0,175.98,48.3222268]
[1747583410458,143.290372,176.0,175.98,49.45826069]
[1747583413970,143.290372,176.0,175.98,130.15826069]
[1747583414167,143.290372,176.0,175.98,129.0222268]
[1747583414470,143.290372,176.0,175.99,1.1360615]
[1747583414665,129.10218012,176.0,175.99,100.48571036]
[1747583415267,114.91398824,176.0,175.99,100.48571036]
[1747583415591,65.8664035,176.0,175.99,244.46785139]
[1747583415752,65.8664035,176.0,175.99,243.33178989]
[1747583416244,51.67821162,176.0,175.99,243.33178989]
[1747583416647,67.8327171,176.02,176.01,18.64964886]
[1747583416867,95.4902,176.09,176.05,26.0]
[1747583417060,95.4902,176.09,176.08,26.0]
[1747583417445,95.4902,176.09,176.08,36.34289338]
[1747583418077,95.4902,176.09,176.08,39.10911968]
[1747583418379,93.39060643,176.09,176.08,70.96806324]
[1747583418543,85.89444937,176.09,176.08,70.96806324]
[1747583418748,69.0732003,176.09,176.08,441.59291882]
[1747583418967,69.0732003,176.09,176.08,440.4577121]
[1747583419182,51.42742439,176.09,176.08,440.4577121]
[1747583419477,95.4902,176.16,176.08,437.56055501]
[1747583419683,95.4902,176.16,176.12,26.0]
[1747583419853,95.4902,176.16,176.15,26.0]
[1747583421385,95.4902,176.16,176.13,27.13500445]
[1747583421551,95.4902,176.16,176.14,49.49730214]
[1747583421757,95.4902,176.16,176.15,1.13492723]
[1747583423658,60.50575555,176.16,176.15,6.81190707]
[1747583423863,46.33204717,176.16,176.15,6.81190707]
[1747583424269,46.33204717,176.16,176.15,50.57190707]
[1747583425085,46.33204717,176.16,176.15,50.59190707]
[1747583426162,46.33204717,176.16,176.15,75.41697984]
[1747583426675,46.33204717,176.16,176.15,49.41697984]
[1747583427369,46.33204717,176.16,176.15,49.91697984]
[1747583428787,74.44205186,176.16,176.15,49.91697984]
[1747583429589,46.33204717,176.16,176.15,49.91697984]
[1747583429789,74.44205186,176.16,176.15,28.07697984]
[1747583430355,46.33204717,176.16,176.15,28.07697984]
[1747583430984,74.44205186,176.16,176.15,28.07697984]
[1747583431291,46.33204717,176.16,176.15,28.07697984]
[1747583431660,74.44205186,176.16,176.15,28.07697984]
[1747583432075,46.33204717,176.16,176.15,28.07697984]
[1747583432684,74.44205186,176.16,176.15,28.07697984]
[1747583433297,46.33204717,176.16,176.15,28.07697984]
[1747583433468,74.44205186,176.16,176.15,28.07697984]
[1747583433793,46.33204717,176.16,176.15,28.07697984]
[1747583434375,46.33204717,176.16,176.15,55.21209024]
[1747583435061,46.33204717,176.16,176.15,54.07697984]
[1747583436287,46.33204717,176.16,176.15,28.07697984]
[1747583436488,46.33204717,176.16,176.15,27.57697984]
[1747583436690,32.15512279,176.16,176.15,35.85872064]
[1747583436867,32.15512279,176.16,176.15,35.93601661]
[1747583437060,17.97819841,176.16,176.15,35.93601661]
[1747583437269,84.74186072,176.24,176.19,26.0]
[1747583437491,84.74186072,176.24,176.2,26.0]
[1747583437686,80.73899832,176.24,176.23,31.67440276]
[1747583437885,80.73899832,176.24,176.23,53.57440276]
[1747583438998,1.7798,176.23,176.18,5.67601316]
[1747583439165,28.11000469,176.19,176.18,27.65601316]
[1747583439365,1.7798,176.23,176.18,41.84604608]
[1747583439590,1.7798,176.23,176.19,27.13491202]
[1747583439894,1.7798,176.23,176.2,5.67536889]
[1747583440265,28.11000469,176.22,176.2,5.67536889]
[1747583440465,1.7798,176.23,176.2,5.67536889]
[1747583440768,28.11000469,176.22,176.2,5.67536889]
[1747583440963,1.7798,176.23,176.2,27.71536889]
[1747583441186,28.11000469,176.22,176.2,27.71536889]
[1747583441405,1.7798,176.23,176.2,27.71536889]
[1747583441701,29.88980469,176.23,176.2,27.71536889]
[1747583441902,1.7798,176.23,176.2,27.71536889]
[1747583442195,28.11000469,176.22,176.2,27.71536889]
[1747583443772,1.7798,176.23,176.2,27.71536889]
[1747583443973,29.88980469,176.23,176.2,27.71536889]
[1747583444973,28.11000469,176.23,176.2,27.71536889]
[1747583445588,80.73899832,176.24,176.2,41.90379113]
[1747583445901,80.73899832,176.24,176.23,26.0]
[1747583446307,108.84900301,176.24,176.21,26.0]
[1747583446521,28.11000469,176.23,176.21,26.0]
[1747583446738,28.11000469,176.23,176.22,5.67472477]
[1747583447296,108.84900301,176.24,176.22,5.67472477]
[1747583447700,80.73899832,176.24,176.22,5.67472477]
[1747583447890,80.73899832,176.24,176.22,31.67472477]
[1747583448794,108.84900301,176.24,176.22,5.67472477]
[1747583448996,28.11000469,176.23,176.22,5.67472477]
[1747583449175,80.73899832,176.24,176.22,5.67472477]
[1747583449695,80.73899832,176.24,176.23,26.0]
[1747583450781,80.73899832,176.24,176.23,31.67440276]
[1747583452211,113.02933415,176.31,176.23,105.73756834]
[1747583452414,95.4902,176.31,176.27,26.0]